[Event "FRA-ch Open A-D 2018"]
[Site "Nimes"]
[Date "2018.08.20"]
[Round "3"]
[White "De Lussac, Rainier"]
[Black "Girardon, Jerome"]
[Result "0-1"]
[ECO "A40"]
[WhiteElo "2071"]
[BlackElo "2186"]
[Annotator "NA"]
[PlyCount "113"]
[EventDate "2018.08.18"]
[EventType "tourn"]
[EventCountry "FRA"]
[SourceTitle "playchess.com"]
[Source "ChessBase"]
[SourceQuality "1"]
[TimeControl "40/5400+30:1800+30"]

1. d4 {[%emt 0:00:00]} g6 {[%emt 0:03:00]} 2. Nf3 {[%emt 0:01:21]} Bg7 {[%emt 0:00:27]} 3. c4 {[%emt 0:00:45]} c5 {[%emt 0:00:18]} 4. d5 {[%emt 0:05:55]} d6 {[%emt 0:00:37]} 5. e4 {[%emt 0:03:06]} Nd7 {[%emt 0:01:03]} 6. Be2 {[%emt 0:01:52]} b5 {[%emt 0:01:01]} 7. a4 {[%emt 0:06:53]} bxc4 {[%emt 0:00:33]} 8. O-O {[%emt 0:05:11]} Ba6 {[%emt 0:08:11]} 9. Qc2 {[%emt 0:02:58]} Rb8 {[%emt 0:05:29]} 10. Na3 {[%emt 0:06:06]} Ngf6 {[%emt 0:14:41]} 11. Bxc4 {[%emt 0:04:33]} Bxc4 {[%emt 0:02:26]} 12. Nxc4 {[%emt 0:00:05]} O-O {[%emt 0:00:06]} 13. Bd2 {[%emt 0:02:25]} Re8 {[%emt 0:01:48]} 14. Rfe1 {[%emt 0:06:35]} Qc7 {[%emt 0:01:29]} 15. h3 {[%emt 0:09:27]} Nb6 {[%emt 0:08:59]} 16. Na3 {[%emt 0:09:54]} Qb7 {[%emt 0:09:56]} 17. Bc3 {[%emt 0:04:40]} Nfd7 {[%emt 0:01:43]} 18. a5 {[%emt 0:05:36]} Na8 {[%emt 0:00:28]} 19. e5 {[%emt 0:03:32]} Nc7 {[%emt 0:01:42]} 20. exd6 {[%emt 0:03:40]} exd6 {[%emt 0:00:08]} 21. Rxe8+ {[%emt 0:00:46]} Rxe8 {[%emt 0:03:55]} 22. Bxg7 {[%emt 0:01:32]} Kxg7 {[%emt 0:00:06]} 23. Nc4 {[%emt 0:00:02]} Qa6 {[%emt 0:05:46]} 24. Rd1 {[%emt 0:03:50]} Nf6 {[%emt 0:03:04]} 25. Qc3 {[%emt 0:00:53]} Re4 {[%emt 0:00:19]} 26. b3 {[%emt 0:01:16]} Nb5 {[%emt 0:02:17]} 27. Qb2 {[%emt 0:01:59]} Qc8 {[%emt 0:02:18]} 28. Ng5 {[%emt 0:07:25]} Rd4 {[%emt 0:04:20]} 29. Re1 {[%emt 0:01:11]} Qf5 {[%emt 0:00:51]} 30. Nf3 {[%emt 0:00:12]} Rf4 {[%emt 0:05:30]} 31. Ne3 {[%emt 0:00:44]} Qd3 {[%emt 0:03:05]} 32. Rd1 {[%emt 0:00:45]} Qc3 {[%emt 0:06:01]} 33. Qxc3 {[%emt 0:00:04]} Nxc3 {[%emt 0:00:04]} 34. Rd3 {[%emt 0:00:15]} Ne2+ {[%emt 0:01:57]} 35. Kf1 {[%emt 0:00:12]} Nc1 {[%emt 0:00:05]} 36. Rc3 {[%emt 0:01:05]} Na2 {[%emt 0:00:05]} 37. Rc4 {[%emt 0:00:39]} Re4 {[%emt 0:01:29]} 38. Ke2 {[%emt 0:00:58]} Re7 {[%emt 0:00:53]} 39. Kd1 {[%emt 0:00:34]} Nb4 {[%emt 0:00:35]} 40. Nd2 {[%emt 0:00:29]} Nbxd5 {[%emt 0:01:20]} 41. Nxd5 {[%emt 0:04:29]} Nxd5 {[%emt 0:00:13]} 42. Nb1 {[%emt 0:01:44]} Nb4 {[%emt 0:03:38]} 43. Kd2 {[%emt 0:04:10]} Nc6 {[%emt 0:04:49]} 44. Ra4 {[%emt 0:02:51]} Rb7 {[%emt 0:06:46]} 45. Nc3 {[%emt 0:02:13]} f5 {[%emt 0:00:17]} 46. f4 {[%emt 0:02:22]} d5 {[%emt 0:05:22]} 47. a6 {[%emt 0:03:18]} Rb8 {[%emt 0:01:52]} 48. Ra1 {[%emt 0:02:04]} Nb4 {[%emt 0:05:19]} 49. Ra5 {[%emt 0:02:47]} Rb6 {[%emt 0:01:19]} 50. Rxc5 {[%emt 0:02:06]} Nxa6 {[%emt 0:00:33]} 51. Rxd5 {[%emt 0:01:57]} Rxb3 {[%emt 0:00:31]} 52. Rb5 {[%emt 0:01:35]} Rxb5 {[%emt 0:01:33]} 53. Nxb5 {[%emt 0:00:04]} Nc5 {[%emt 0:00:08]} 54. Nxa7 {[%emt 0:00:07]} Kh6 {[%emt 0:00:06]} 55. Ke3 {[%emt 0:01:22]} Kh5 {[%emt 0:00:10]} 56. g3 {[%emt 0:00:52]} Ne4 {[%emt 0:02:10]} 57. Kd4 0-1

[Event "FRA-ch Open A-D 2018"]
[Site "Nimes"]
[Date "2018.08.20"]
[Round "3"]
[White "Zarrouati, Pierre"]
[Black "Daurelle, Herve"]
[Result "0-1"]
[ECO "A46"]
[WhiteElo "2067"]
[BlackElo "2181"]
[Annotator "NA"]
[PlyCount "44"]
[EventDate "2018.08.18"]
[EventType "tourn"]
[EventCountry "FRA"]
[SourceTitle "playchess.com"]
[Source "ChessBase"]
[SourceQuality "1"]
[TimeControl "40/5400+30:1800+30"]

1. d4 {[%emt 0:00:51]} Nf6 {[%emt 0:00:00]} 2. Nf3 {[%emt 0:00:49]} e6 {[%emt 0:00:00]} 3. Bf4 {[%emt 0:02:16]} c5 {[%emt 0:00:48]} 4. c3 {[%emt 0:01:05]} d5 {[%emt 0:03:09]} 5. e3 {[%emt 0:00:50]} Nc6 {[%emt 0:01:33]} 6. Nbd2 {[%emt 0:03:30]} Bd6 {[%emt 0:00:23]} 7. Ne5 {[%emt 0:01:38]} Qc7 {[%emt 0:20:33]} 8. Bb5 {[%emt 0:06:18]} O-O {[%emt 0:13:51]} 9. Bxc6 {[%emt 0:04:05]} bxc6 {[%emt 0:01:10]} 10. Qa4 {[%emt 0:01:57]} Bb7 {[%emt 0:16:36]} 11. b4 {[%emt 0:01:33]} c4 {[%emt 0:02:37]} 12. Qd1 {[%emt 0:02:26]} a5 {[%emt 0:00:46]} 13. a3 {[%emt 0:00:11]} axb4 {[%emt 0:02:17]} 14. axb4 {[%emt 0:03:50]} Nh5 {[%emt 0:00:30]} 15. O-O {[%emt 0:00:30]} Rxa1 {[%emt 0:00:30]} 16. Qxa1 {[%emt 0:00:30]} f6 {[%emt 0:00:30]} 17. Nef3 {[%emt 0:00:30]} Nxf4 {[%emt 0:00:30]} 18. exf4 {[%emt 0:00:30]} Bxf4 {[%emt 0:00:30]} 19. Re1 {[%emt 0:00:30]} Ra8 {[%emt 0:00:30]} 20. Qb2 {[%emt 0:00:30]} Bc8 {[%emt 0:00:30]} 21. Ra1 {[%emt 0:00:30]} Qb7 {[%emt 0:00:30]} 22. Nb1 {[%emt 0:00:30]} Bc1 {[%emt 0:00:30]} 0-1

[Event "FRA-ch Open A-D 2018"]
[Site "Nimes"]
[Date "2018.08.20"]
[Round "3"]
[White "Grimault, Nathan"]
[Black "Lux, Hugo de Melo"]
[Result "1/2-1/2"]
[ECO "A46"]
[WhiteElo "2066"]
[BlackElo "2147"]
[Annotator "NA"]
[PlyCount "53"]
[EventDate "2018.08.18"]
[EventType "tourn"]
[EventCountry "FRA"]
[SourceTitle "playchess.com"]
[Source "ChessBase"]
[SourceQuality "1"]
[TimeControl "40/5400+30:1800+30"]

1. d4 {[%emt 0:00:00]} Nf6 {[%emt 0:00:00]} 2. Nf3 {[%emt 0:00:07]} e6 {[%emt 0:00:00]} 3. g3 {[%emt 0:01:09]} c5 {[%emt 0:01:31]} 4. Bg2 {[%emt 0:00:51]} d5 {[%emt 0:01:04]} 5. O-O {[%emt 0:04:42]} cxd4 {[%emt 0:05:00]} 6. Nxd4 {[%emt 0:10:26]} Be7 {[%emt 0:08:22]} 7. c4 {[%emt 0:03:26]} O-O {[%emt 0:00:29]} 8. cxd5 {[%emt 0:00:52]} Nxd5 {[%emt 0:00:34]} 9. e4 {[%emt 0:01:09]} Nb4 {[%emt 0:00:37]} 10. Nc3 {[%emt 0:02:59]} N8c6 {[%emt 0:05:10]} 11. Nxc6 {[%emt 0:00:21]} Nxc6 {[%emt 0:00:20]} 12. Qe2 {[%emt 0:00:12]} Nd4 {[%emt 0:04:35]} 13. Qd3 {[%emt 0:02:45]} e5 {[%emt 0:07:38]} 14. Nd5 {[%emt 0:03:11]} Bg4 {[%emt 0:10:33]} 15. Be3 {[%emt 0:10:33]} Be2 {[%emt 0:02:40]} 16. Qd2 {[%emt 0:00:07]} Nf3+ {[%emt 0:13:35]} 17. Bxf3 {[%emt 0:00:07]} Bxf3 {[%emt 0:00:04]} 18. Qd3 {[%emt 0:03:59]} f5 {[%emt 0:03:33]} 19. Bc5 {[%emt 0:04:04]} Bxc5 {[%emt 0:08:03]} 20. Qxf3 {[%emt 0:00:09]} f4 {[%emt 0:03:05]} 21. Rad1 {[%emt 0:05:45]} fxg3 {[%emt 0:07:18]} 22. Qxg3 {[%emt 0:00:13]} Bd4 {[%emt 0:00:18]} 23. Rc1 {[%emt 0:02:43]} Rf7 {[%emt 0:01:28]} 24. Rc2 {[%emt 0:08:17]} Rc8 {[%emt 0:01:51]} 25. Rfc1 {[%emt 0:04:40]} Rxc2 {[%emt 0:00:16]} 26. Rxc2 {[%emt 0:01:44]} g6 {[%emt 0:00:58]} 27. b4 {[%emt 0:04:22]} 1/2-1/2

[Event "FRA-ch Open A-D 2018"]
[Site "Nimes"]
[Date "2018.08.20"]
[Round "3"]
[White "Verin, Jules"]
[Black "Bailleul, Adrien"]
[Result "1-0"]
[ECO "E10"]
[WhiteElo "1941"]
[BlackElo "1899"]
[Annotator "NA"]
[PlyCount "41"]
[EventDate "2018.08.18"]
[EventType "tourn"]
[EventCountry "FRA"]
[SourceTitle "playchess.com"]
[Source "ChessBase"]
[SourceQuality "1"]
[TimeControl "40/5400+30:1800+30"]

1. d4 {[%emt 0:00:00]} Nf6 {[%emt 0:00:00]} 2. Nf3 {[%emt 0:00:00]} c5 {[%emt 0:00:36]} 3. d5 {[%emt 0:00:00]} e6 {[%emt 0:00:39]} 4. c4 {[%emt 0:00:13]} b5 {[%emt 0:00:34]} 5. Bg5 {[%emt 0:10:06]} b4 {[%emt 0:07:14]} 6. e4 {[%emt 0:04:26]} h6 {[%emt 0:03:43]} 7. Bxf6 {[%emt 0:02:00]} Qxf6 {[%emt 0:01:18]} 8. e5 {[%emt 0:01:27]} Qd8 {[%emt 0:03:15]} 9. Bd3 {[%emt 0:06:31]} Bb7 {[%emt 0:02:15]} 10. Be4 {[%emt 0:02:47]} d6 {[%emt 0:02:23]} 11. Qd3 {[%emt 0:05:07]} dxe5 {[%emt 0:05:33]} 12. Nxe5 {[%emt 0:04:19]} Qf6 {[%emt 0:02:23]} 13. f4 {[%emt 0:20:39]} Qxf4 {[%emt 0:03:36]} 14. Nxf7 {[%emt 0:01:36]} Qc1+ {[%emt 0:00:41]} 15. Ke2 {[%emt 0:05:51]} Qxh1 {[%emt 0:04:17]} 16. dxe6 {[%emt 0:02:17]} Be7 {[%emt 0:05:32]} 17. Bxb7 {[%emt 0:06:50]} Qc1 {[%emt 0:05:27]} 18. Nd2 {[%emt 0:08:57]} Qxa1 {[%emt 0:00:50]} 19. Nd6+ {[%emt 0:01:31]} Bxd6 {[%emt 0:01:36]} 20. Qxd6 {[%emt 0:00:33]} Qxb2 {[%emt 0:04:02]} 21. Bc6+ 1-0

[Event "FRA-ch Open A-D 2018"]
[Site "Nimes"]
[Date "2018.08.20"]
[Round "3"]
[White "Sabatier, Mathis"]
[Black "Boes, Remi"]
[Result "1-0"]
[ECO "A37"]
[WhiteElo "1904"]
[BlackElo "1946"]
[Annotator "NA"]
[PlyCount "73"]
[EventDate "2018.08.18"]
[EventType "tourn"]
[EventCountry "FRA"]
[SourceTitle "playchess.com"]
[Source "ChessBase"]
[SourceQuality "1"]
[TimeControl "40/5400+30:1800+30"]

1. Nf3 c5 {[%emt 0:01:23]} 2. g3 {[%emt 0:00:03]} g6 {[%emt 0:00:57]} 3. Bg2 {[%emt 0:00:14]} Bg7 {[%emt 0:00:06]} 4. c4 {[%emt 0:00:05]} Nc6 {[%emt 0:01:06]} 5. Nc3 {[%emt 0:00:10]} d6 {[%emt 0:01:20]} 6. O-O {[%emt 0:01:01]} e5 {[%emt 0:01:14]} 7. d3 {[%emt 0:00:50]} Nge7 {[%emt 0:00:18]} 8. Ne1 {[%emt 0:02:11]} O-O {[%emt 0:01:56]} 9. Nc2 {[%emt 0:00:57]} Rb8 {[%emt 0:03:46]} 10. Ne3 {[%emt 0:12:33]} Be6 {[%emt 0:07:26]} 11. Ned5 {[%emt 0:03:57]} Bxd5 {[%emt 0:03:46]} 12. Nxd5 {[%emt 0:00:46]} Nxd5 {[%emt 0:00:21]} 13. cxd5 {[%emt 0:00:58]} Nd4 {[%emt 0:06:32]} 14. e3 {[%emt 0:13:33]} Nf5 {[%emt 0:02:00]} 15. Bd2 {[%emt 0:13:37]} b5 {[%emt 0:05:55]} 16. e4 {[%emt 0:06:40]} Nd4 {[%emt 0:11:37]} 17. f4 {[%emt 0:02:34]} exf4 {[%emt 0:01:39]} 18. gxf4 {[%emt 0:01:44]} f5 {[%emt 0:02:28]} 19. Rc1 {[%emt 0:07:44]} Qb6 {[%emt 0:16:27]} 20. Kh1 {[%emt 0:04:40]} a5 {[%emt 0:02:11]} 21. Bc3 {[%emt 0:06:01]} Rbe8 {[%emt 0:05:34]} 22. Bxd4 {[%emt 0:03:21]} Bxd4 {[%emt 0:00:09]} 23. Qc2 {[%emt 0:01:15]} fxe4 {[%emt 0:01:18]} 24. Bxe4 {[%emt 0:01:41]} Be3 {[%emt 0:04:23]} 25. Rce1 {[%emt 0:02:33]} Rxf4 {[%emt 0:07:02]} 26. Qg2 {[%emt 0:01:22]} Rxf1+ {[%emt 0:00:45]} 27. Rxf1 {[%emt 0:00:17]} g5 {[%emt 0:05:11]} 28. Qh3 {[%emt 0:00:52]} Rxe4 {[%emt 0:00:39]} 29. dxe4 {[%emt 0:00:10]} Bf4 {[%emt 0:00:29]} 30. Qe6+ {[%emt 0:02:04]} Kg7 {[%emt 0:00:13]} 31. Qe7+ {[%emt 0:02:40]} Kg8 {[%emt 0:01:13]} 32. Rf3 {[%emt 0:01:03]} h5 {[%emt 0:02:24]} 33. Qe8+ {[%emt 0:00:30]} Kg7 {[%emt 0:00:12]} 34. Qxh5 {[%emt 0:00:13]} c4 {[%emt 0:00:07]} 35. Rh3 {[%emt 0:01:13]} Qd8 {[%emt 0:02:12]} 36. Qh7+ {[%emt 0:00:29]} Kf6 {[%emt 0:00:14]} 37. Qf5+ {[%emt 0:00:16]} 1-0

[Event "FRA-ch Open A-D 2018"]
[Site "Nimes"]
[Date "2018.08.20"]
[Round "3"]
[White "Brouard, Gregoire"]
[Black "Berthaut, Alexandre"]
[Result "1-0"]
[ECO "A40"]
[WhiteElo "1898"]
[BlackElo "1925"]
[Annotator "NA"]
[PlyCount "56"]
[EventDate "2018.08.18"]
[EventType "tourn"]
[EventCountry "FRA"]
[SourceTitle "playchess.com"]
[Source "ChessBase"]
[SourceQuality "1"]
[TimeControl "40/5400+30:1800+30"]

1. d4 {[%emt 0:00:00]} b6 {[%emt 0:00:02]} 2. e4 {[%emt 0:00:08]} Bb7 {[%emt 0:00:00]} 3. Nc3 {[%emt 0:00:15]} e6 {[%emt 0:00:01]} 4. Bd3 {[%emt 0:00:29]} Nf6 {[%emt 0:00:01]} 5. Nge2 {[%emt 0:00:17]} d5 {[%emt 0:02:10]} 6. e5 {[%emt 0:04:15]} Ne4 {[%emt 0:00:01]} 7. O-O {[%emt 0:22:45]} c5 {[%emt 0:02:41]} 8. Ng3 {[%emt 0:09:12]} cxd4 {[%emt 0:25:27]} 9. Ncxe4 {[%emt 0:08:11]} dxe4 {[%emt 0:00:16]} 10. Nxe4 {[%emt 0:00:05]} Be7 {[%emt 0:13:18]} 11. Qg4 {[%emt 0:09:04]} Kf8 {[%emt 0:09:10]} 12. f4 {[%emt 0:08:50]} Nd7 {[%emt 0:13:37]} 13. Qh5 {[%emt 0:13:57]} f5 {[%emt 0:07:44]} 14. exf6 {[%emt 0:05:13]} Nxf6 {[%emt 0:01:34]} 15. Nxf6 {[%emt 0:00:51]} Bxf6 {[%emt 0:01:24]} 16. b3 {[%emt 0:01:27]} Qd5 {[%emt 0:02:45]} 17. Ba3+ {[%emt 0:02:32]} Kg8 {[%emt 0:06:23]} 18. Qh3 {[%emt 0:01:01]} Qd7 {[%emt 0:09:22]} 19. Rae1 {[%emt 0:06:30]} Bd5 {[%emt 0:00:01]} 20. Re2 {[%emt 0:00:52]} Re8 {[%emt 0:01:02]} 21. Rfe1 {[%emt 0:00:40]} g6 {[%emt 0:00:53]} 22. g4 {[%emt 0:02:29]} Kg7 {[%emt 0:00:15]} 23. g5 {[%emt 0:00:18]} Bd8 {[%emt 0:00:27]} 24. Bb2 {[%emt 0:00:54]} Bc6 {[%emt 0:01:58]} 25. Rxe6 {[%emt 0:00:36]} Qd5 26. Rxe8 {[%emt 0:00:52]} Rxe8 {[%emt 0:01:30]} 27. Qh6+ {[%emt 0:01:07]} Kg8 {[%emt 0:00:54]} 28. Rxe8+ {[%emt 0:00:11] Kh8 Qf8+} Bxe8 1-0

[Event "FRA-ch Open A-D 2018"]
[Site "Nimes"]
[Date "2018.08.20"]
[Round "3"]
[White "Ruch, Bernard"]
[Black "Destic, Pablo"]
[Result "1/2-1/2"]
[ECO "A40"]
[WhiteElo "1889"]
[BlackElo "1921"]
[Annotator "NA"]
[PlyCount "125"]
[EventDate "2018.08.18"]
[EventType "tourn"]
[EventCountry "FRA"]
[SourceTitle "playchess.com"]
[Source "ChessBase"]
[SourceQuality "1"]
[TimeControl "40/5400+30:1800+30"]

1. d4 {[%emt 0:00:00]} g6 {[%emt 0:00:00]} 2. e3 {[%emt 0:01:58]} Bg7 {[%emt 0:01:30]} 3. c3 {[%emt 0:01:20]} Nf6 {[%emt 0:01:54]} 4. Nd2 {[%emt 0:00:39]} d5 {[%emt 0:02:04]} 5. Be2 {[%emt 0:01:13]} O-O {[%emt 0:04:26]} 6. h4 {[%emt 0:00:46]} c5 {[%emt 0:05:58]} 7. h5 {[%emt 0:03:13]} Nc6 {[%emt 0:02:36]} 8. hxg6 {[%emt 0:00:50]} fxg6 {[%emt 0:01:22]} 9. Nh3 {[%emt 0:05:06]} Bxh3 {[%emt 0:05:53]} 10. Rxh3 {[%emt 0:00:35]} cxd4 {[%emt 0:02:14]} 11. exd4 {[%emt 0:01:23]} e5 {[%emt 0:01:35]} 12. dxe5 {[%emt 0:04:46]} Nxe5 {[%emt 0:00:58]} 13. Nf3 {[%emt 0:01:45]} Ne4 {[%emt 0:10:22]} 14. Be3 {[%emt 0:04:29]} Ng4 {[%emt 0:06:25]} 15. Qb3 {[%emt 0:02:00]} Nxe3 {[%emt 0:05:59]} 16. fxe3 {[%emt 0:00:51]} Nc5 {[%emt 0:06:01]} 17. Qb4 {[%emt 0:06:16]} Qe7 {[%emt 0:05:44]} 18. Qh4 {[%emt 0:04:58]} Qxh4+ {[%emt 0:09:14]} 19. Rxh4 {[%emt 0:04:03]} Rae8 {[%emt 0:01:39]} 20. Rd1 {[%emt 0:01:07]} Rxe3 {[%emt 0:03:02]} 21. Rxd5 {[%emt 0:01:08]} Rfe8 {[%emt 0:02:50]} 22. Rd2 {[%emt 0:10:57]} Ne4 {[%emt 0:05:10]} 23. Rc2 {[%emt 0:00:24]} g5 {[%emt 0:01:26]} 24. Rxe4 {[%emt 0:02:30]} R8xe4 {[%emt 0:01:58]} 25. Nxg5 {[%emt 0:00:53]} Re7 {[%emt 0:00:21]} 26. Kf2 {[%emt 0:00:59]} Bh6 {[%emt 0:01:42]} 27. Nf3 {[%emt 0:03:24]} Bf4 {[%emt 0:01:20]} 28. Bc4+ {[%emt 0:00:51]} Kg7 {[%emt 0:00:15]} 29. Bd5 {[%emt 0:00:33]} Rd7 {[%emt 0:02:36]} 30. c4 {[%emt 0:00:23]} b6 {[%emt 0:01:28]} 31. g3 {[%emt 0:01:26]} Bh6 {[%emt 0:00:05]} 32. Nh4 {[%emt 0:02:40]} Re5 {[%emt 0:00:52]} 33. Kg2 {[%emt 0:00:33]} Be3 {[%emt 0:01:39]} 34. Nf3 {[%emt 0:03:02]} Ree7 {[%emt 0:00:29]} 35. b3 {[%emt 0:01:14]} Bc5 {[%emt 0:01:34]} 36. Ng5 {[%emt 0:01:22]} Re5 {[%emt 0:00:58]} 37. Ne6+ {[%emt 0:01:24]} Kf6 {[%emt 0:00:10]} 38. Nf4 {[%emt 0:01:53]} Rg7 {[%emt 0:01:19]} 39. Bf3 {[%emt 0:00:44]} Ke7 {[%emt 0:01:33]} 40. Nd5+ {[%emt 0:01:56]} Kf7 {[%emt 0:00:40]} 41. b4 {[%emt 0:32:41]} Bd4 {[%emt 0:31:29]} 42. c5 {[%emt 0:05:24]} bxc5 {[%emt 0:00:28]} 43. bxc5 {[%emt 0:00:13]} Reg5 {[%emt 0:00:07]} 44. g4 {[%emt 0:02:20]} h5 {[%emt 0:00:22]} 45. c6 {[%emt 0:00:20]} hxg4 {[%emt 0:00:24]} 46. Be4 {[%emt 0:00:25]} Be5 {[%emt 0:00:35]} 47. c7 {[%emt 0:00:49]} Bxc7 {[%emt 0:00:07]} 48. Rxc7+ {[%emt 0:00:13]} Ke6 {[%emt 0:00:15]} 49. Rc5 {[%emt 0:03:51]} Ke5 {[%emt 0:00:58]} 50. Rc4 {[%emt 0:03:26]} Rd7 {[%emt 0:00:13]} 51. Ra4 {[%emt 0:02:12]} Rgg7 {[%emt 0:00:35]} 52. Nc3 {[%emt 0:00:32]} Rd4 {[%emt 0:00:18]} 53. Ra5+ {[%emt 0:00:44]} Kf4 {[%emt 0:00:17]} 54. Rf5+ {[%emt 0:02:48]} Ke3 {[%emt 0:00:08]} 55. Bb1 {[%emt 0:00:13]} Rb7 {[%emt 0:01:23]} 56. Kg3 {[%emt 0:03:02]} Rc4 {[%emt 0:01:27]} 57. Nb5 {[%emt 0:02:42]} Rb4 {[%emt 0:01:12]} 58. Re5+ {[%emt 0:00:00]} Kd2 {[%emt 0:00:00]} 59. Rd5+ {[%emt 0:00:00]} Kc1 {[%emt 0:00:00]} 60. Bd3 {[%emt 0:00:00]} Kb2 {[%emt 0:00:00]} 61. Nd6 {[%emt 0:00:00]} Rc7 {[%emt 0:00:00]} 62. Ne4 {[%emt 0:00:00]} Kxa2 {[%emt 0:00:00]} 63. Kxg4 {[%emt 0:00:00]} 1/2-1/2

[Event "FRA-ch Open A-D 2018"]
[Site "Nimes"]
[Date "2018.08.20"]
[Round "3"]
[White "Aumont, Eric"]
[Black "Silvera, Ruben"]
[Result "0-1"]
[ECO "A38"]
[WhiteElo "1745"]
[BlackElo "1688"]
[Annotator "NA"]
[PlyCount "82"]
[EventDate "2018.08.18"]
[EventType "tourn"]
[EventCountry "FRA"]
[SourceTitle "playchess.com"]
[Source "ChessBase"]
[SourceQuality "1"]
[TimeControl "40/5400+30:1800+30"]

1. c4 {[%emt 0:00:00]} Nf6 {[%emt 0:00:00]} 2. Nc3 {[%emt 0:00:00]} c5 {[%emt 0:00:00]} 3. g3 {[%emt 0:00:08]} g6 {[%emt 0:00:08]} 4. Bg2 {[%emt 0:00:12]} Bg7 {[%emt 0:00:12]} 5. Nf3 {[%emt 0:00:30]} Nc6 {[%emt 0:00:15]} 6. O-O {[%emt 0:00:46]} O-O {[%emt 0:00:14]} 7. e4 {[%emt 0:05:51]} d6 {[%emt 0:02:09]} 8. d3 {[%emt 0:01:27]} Bg4 {[%emt 0:06:30]} 9. h3 {[%emt 0:00:31]} Bxf3 {[%emt 0:00:32]} 10. Bxf3 {[%emt 0:01:51]} Nd4 {[%emt 0:00:21]} 11. Bg2 {[%emt 0:03:29]} a6 {[%emt 0:00:57]} 12. Ne2 {[%emt 0:07:10]} Nxe2+ {[%emt 0:10:09]} 13. Qxe2 {[%emt 0:00:12]} Qc7 {[%emt 0:07:50]} 14. Bd2 {[%emt 0:06:53]} e5 {[%emt 0:02:45]} 15. f4 {[%emt 0:05:36]} exf4 {[%emt 0:00:23]} 16. gxf4 {[%emt 0:00:36]} b5 {[%emt 0:02:01]} 17. Be3 {[%emt 0:11:06]} Nd7 {[%emt 0:14:04]} 18. Rac1 {[%emt 0:10:51]} b4 {[%emt 0:05:12]} 19. Qf2 {[%emt 0:05:27]} Rae8 {[%emt 0:05:57]} 20. Bf3 {[%emt 0:06:56]} f5 {[%emt 0:01:24]} 21. Kh1 {[%emt 0:08:36]} Nb8 {[%emt 0:04:26]} 22. e5 {[%emt 0:01:49]} Nd7 {[%emt 0:02:51]} 23. exd6 {[%emt 0:02:21]} Qxd6 {[%emt 0:00:10]} 24. Bd5+ {[%emt 0:00:37]} Kh8 {[%emt 0:00:04]} 25. d4 {[%emt 0:01:34]} Rxe3 {[%emt 0:07:37]} 26. Qxe3 {[%emt 0:00:29]} Bxd4 {[%emt 0:00:09]} 27. Qe2 {[%emt 0:02:25]} Nf6 {[%emt 0:00:21]} 28. Qg2 {[%emt 0:01:38]} Nh5 {[%emt 0:06:47]} 29. Rce1 {[%emt 0:00:44]} Nxf4 {[%emt 0:02:15]} 30. Qg3 {[%emt 0:00:38]} g5 {[%emt 0:00:06]} 31. Re6 {[%emt 0:01:03]} Qd7 {[%emt 0:00:57]} 32. Rxf4 {[%emt 0:00:58]} gxf4 {[%emt 0:00:55]} 33. Qxf4 {[%emt 0:00:40]} Qg7 {[%emt 0:01:28]} 34. Bg2 {[%emt 0:01:17]} Bxb2 {[%emt 0:01:43]} 35. Rxa6 {[%emt 0:01:46]} Qe7 {[%emt 0:03:41]} 36. Qf3 {[%emt 0:04:25]} Qe1+ {[%emt 0:02:36]} 37. Qf1 {[%emt 0:00:32]} Re8 {[%emt 0:03:02]} 38. Rd6 {[%emt 0:04:59]} Bd4 {[%emt 0:01:37]} 39. Rd7 {[%emt 0:02:14]} Qg3 {[%emt 0:06:32]} 40. Qxf5 {[%emt 0:01:09]} Re1+ {[%emt 0:00:21]} 41. Bf1 {[%emt 0:30:07]} Qg1# {[%emt 0:30:16]} 0-1

[Event "FRA-ch Open A-D 2018"]
[Site "Nimes"]
[Date "2018.08.20"]
[Round "3"]
[White "Auffray-Bonnet, Gaspard"]
[Black "Arcusa, Michel"]
[Result "1-0"]
[ECO "B46"]
[WhiteElo "1736"]
[BlackElo "1651"]
[Annotator "NA"]
[PlyCount "55"]
[EventDate "2018.08.18"]
[EventType "tourn"]
[EventCountry "FRA"]
[SourceTitle "playchess.com"]
[Source "ChessBase"]
[SourceQuality "1"]
[TimeControl "40/5400+30:1800+30"]

1. e4 {[%emt 0:00:24]} c5 {[%emt 0:00:00]} 2. Nf3 {[%emt 0:00:08]} Nc6 {[%emt 0:00:00]} 3. d4 {[%emt 0:00:12]} cxd4 {[%emt 0:00:00]} 4. Nxd4 {[%emt 0:00:09]} e6 {[%emt 0:00:00]} 5. Nc3 {[%emt 0:00:25]} a6 6. Be2 {[%emt 0:01:36]} Nf6 {[%emt 0:00:08]} 7. Nxc6 {[%emt 0:00:27]} bxc6 {[%emt 0:00:12]} 8. O-O {[%emt 0:00:50]} Qc7 {[%emt 0:00:37]} 9. Be3 {[%emt 0:01:13]} Bb4 {[%emt 0:02:34]} 10. Qd4 {[%emt 0:03:44]} Be7 {[%emt 0:06:55]} 11. e5 {[%emt 0:08:10]} Nd5 {[%emt 0:01:46]} 12. Nxd5 {[%emt 0:03:13]} cxd5 {[%emt 0:02:45]} 13. c4 {[%emt 0:02:01]} Bb7 {[%emt 0:04:14]} 14. Rac1 {[%emt 0:01:30]} Qa5 {[%emt 0:12:29]} 15. c5 {[%emt 0:04:47]} f5 {[%emt 0:08:58]} 16. g4 {[%emt 0:06:27]} g6 {[%emt 0:09:04]} 17. gxf5 {[%emt 0:00:32]} gxf5 {[%emt 0:00:10]} 18. Bh5+ {[%emt 0:00:16]} Kd8 {[%emt 0:00:13]} 19. Bd2 {[%emt 0:05:23]} Qxa2 {[%emt 0:10:23]} 20. c6 {[%emt 0:01:55]} Kc7 {[%emt 0:24:32]} 21. cxb7+ {[%emt 0:00:43]} Kxb7 {[%emt 0:00:01]} 22. Bb4 {[%emt 0:01:28]} Qa4 {[%emt 0:06:14]} 23. Rc7+ {[%emt 0:01:41]} Kxc7 {[%emt 0:02:32]} 24. Bd6+ {[%emt 0:00:07]} Bxd6 {[%emt 0:00:10]} 25. exd6+ {[%emt 0:00:07]} Kxd6 {[%emt 0:00:48]} 26. Qxa4 {[%emt 0:00:09]} Rhg8+ {[%emt 0:00:30]} 27. Kh1 {[%emt 0:00:07]} Rg5 {[%emt 0:00:07]} 28. Qd1 1-0